bitfinex/quotes_SOLUSD_20250622
["timestamp","ask_amount","ask_price","bid_price","bid_amount"]
[1750576950566,146.9,135.54,135.5,20.66420664]
[1750576950879,146.9,135.54,135.51,10.45501963]
[1750576951851,146.9,135.54,135.52,5.90318772]
[1750576952554,157.35501963,135.54,135.52,5.90318772]
[1750576953379,146.9,135.54,135.52,5.90318772]
[1750576956084,146.9,135.54,135.52,10.45501963]
[1750576956280,146.9,135.54,135.53,10.45501963]
[1750576956472,6.1332,135.58,135.53,10.45501963]
[1750576956473,146.9,135.58,135.53,10.45501963]
[1750576956659,146.9,135.58,135.55,10.45501963]
[1750576958073,146.9,135.58,135.56,5.90144585]
[1750576958461,157.35501963,135.58,135.56,5.90144585]
[1750576960270,157.35501963,135.58,135.54,10.45501963]
[1750576960893,146.9,135.58,135.55,10.45501963]
[1750576961887,146.9,135.58,135.56,5.90144585]
[1750576963159,146.9,135.58,135.56,16.35646548]
[1750576964894,146.9,135.58,135.56,5.90144585]
[1750576965063,146.9,135.58,135.56,16.35646548]
[1750576965263,146.9,135.58,135.57,10.45501963]
[1750576966187,146.9,135.58,135.57,16.35603017]
[1750576968271,146.9,135.61,135.57,31.10855654]
[1750576968572,146.9,135.61,135.58,10.45501963]
[1750576971694,146.9,135.61,135.59,5.90014012]
[1750576972075,146.9,135.61,135.59,16.35515975]
[1750576976996,146.9,135.61,135.57,14.75252637]
[1750576977202,146.9,135.61,135.59,10.45501963]
[1750576978200,146.9,135.61,135.6,5.89970501]
[1750576982181,146.9,135.61,135.58,10.45501963]
[1750576982912,146.9,135.61,135.59,10.45501963]
[1750576983720,146.9,135.61,135.6,5.89970501]
[1750576984083,146.9,135.6,135.58,5.9005753]
[1750576984393,10.45501963,135.59,135.58,5.9005753]
[1750576985089,10.45501963,135.59,135.55,5.90188122]
[1750576986002,10.45501963,135.59,135.55,20.65658428]
[1750576989203,157.35501963,135.5,135.49,5.90449479]
[1750576989593,157.35501963,135.5,135.48,5.90493061]
[1750576991407,10.45501963,135.49,135.47,84.96602439]
[1750576991584,10.45501963,135.48,135.47,84.96602439]
[1750576992112,10.45501963,135.48,135.47,79.06073368]
[1750576992333,40.51501963,135.48,135.47,79.06073368]
[1750576992885,187.41501963,135.48,135.45,5.90622831]
[1750576993189,10.45501963,135.47,135.45,5.90622831]
[1750576993386,157.35501963,135.46,135.42,5.90754689]
[1750576993584,176.96,135.46,135.41,5.90798316]
[1750576993816,10.45501963,135.45,135.41,31.13296069]
[1750576995087,10.45501963,135.45,135.41,25.22497753]
[1750576996414,10.45501963,135.45,135.41,31.13296069]
[1750576998689,157.35501963,135.46,135.41,31.13296069]
[1750577001126,157.35501963,135.46,135.42,10.45501963]
[1750577002123,157.35501963,135.46,135.41,14.7699579]
[1750577002305,157.35501963,135.46,135.43,5.90711068]
[1750577003915,146.9,135.45,135.41,14.7699579]
[1750577004104,146.9,135.45,135.42,10.45501963]
[1750577004823,146.9,135.44,135.41,14.7699579]
[1750577005000,146.9,135.44,135.41,25.22497753]
[1750577005898,146.9,135.44,135.41,31.13296069]
[1750577009918,10.45501963,135.42,135.39,5.90885589]
[1750577010116,10.45501963,135.42,135.39,20.68099563]
[1750577010763,157.35501963,135.41,135.39,5.90885589]
[1750577010939,146.9,135.41,135.39,5.90885589]
[1750577011928,146.9,135.41,135.38,5.90929236]
[1750577012421,157.35501963,135.41,135.38,5.90929236]
[1750577012624,187.43501963,135.41,135.38,5.90929236]
[1750577013412,176.98,135.41,135.38,31.13754289]
[1750577013602,146.9,135.41,135.38,31.13754289]
[1750577014731,157.35501963,135.41,135.38,20.68252326]
[1750577014912,157.35501963,135.41,135.38,5.90929236]
[1750577015633,146.9,135.4,135.38,5.90929236]
[1750577016238,187.43501963,135.4,135.37,5.90972889]
[1750577019035,10.45501963,135.39,135.37,5.90972889]
[1750577019538,187.43501963,135.4,135.37,5.90972889]
[1750577021439,146.9,135.39,135.37,5.90972889]
[1750577023432,157.35501963,135.39,135.37,5.90972889]
[1750577023925,40.55501963,135.38,135.36,7.51583146]
[1750577024119,146.9,135.37,135.36,7.51583146]
[1750577024724,146.9,135.37,135.36,17.97085109]
[1750577026743,146.9,135.37,135.36,7.51583146]
[1750577026944,146.9,135.37,135.36,17.97085109]
[1750577027433,146.9,135.41,135.36,22.29124517]
[1750577027632,146.9,135.41,135.38,10.45501963]
[1750577028751,30.1,135.42,135.39,5.90885589]
[1750577028928,177.0,135.42,135.39,5.90885589]
[1750577029128,146.9,135.42,135.39,5.90885589]
[1750577029741,146.9,135.42,135.39,31.13601526]
[1750577030055,6.42,135.44,135.41,10.45501963]
[1750577030555,66.55501963,135.46,135.41,10.45501963]
[1750577030862,40.55501963,135.46,135.42,20.67641411]
[1750577031633,40.55501963,135.46,135.42,31.13143374]
[1750577031862,10.45501963,135.46,135.42,31.13143374]
[1750577033563,10.45501963,135.45,135.42,20.67641411]
[1750577034463,10.45501963,135.44,135.42,5.90754689]
[1750577034626,10.45501963,135.44,135.41,5.90798316]
[1750577034962,40.53501963,135.45,135.41,5.90798316]
[1750577035667,40.53501963,135.45,135.41,20.67777152]
[1750577036563,40.53501963,135.45,135.41,10.45501963]
[1750577036738,10.45501963,135.45,135.41,10.45501963]
[1750577037067,30.08,135.46,135.41,10.45501963]
[1750577037273,40.53501963,135.46,135.41,10.45501963]
[1750577038175,10.45501963,135.45,135.41,10.45501963]
[1750577038477,10.45501963,135.45,135.42,5.90754689]
[1750577040678,10.45501963,135.45,135.4,10.45501963]
[1750577041243,30.08,135.46,135.4,10.45501963]
[1750577041461,10.45501963,135.45,135.4,10.45501963]
[1750577042274,146.9,135.44,135.4,10.45501963]
[1750577042657,146.9,135.44,135.41,5.90798316]
[1750577044381,146.9,135.44,135.41,20.67794106]
[1750577056482,36.45501963,135.47,135.44,5.90667454]
[1750577056665,66.53501963,135.47,135.44,5.90667454]
[1750577056992,36.45501963,135.47,135.44,5.90667454]
[1750577057180,10.45501963,135.46,135.44,5.90667454]
[1750577058574,10.45501963,135.46,135.43,20.67421217]
[1750577058782,66.53501963,135.47,135.43,20.67421217]
[1750577060501,40.53501963,135.47,135.43,20.67421217]
[1750577061205,146.9,135.49,135.45,10.45501963]
[1750577061365,146.9,135.49,135.48,10.45501963]
[1750577061574,146.9,135.52,135.48,10.45501963]
[1750577061765,146.9,135.52,135.49,10.45501963]
[1750577061996,146.9,135.52,135.51,10.45501963]
[1750577062181,146.9,135.55,135.51,10.45501963]
[1750577062497,146.9,135.55,135.48,26.0]
[1750577062498,10.45501963,135.6,135.54,10.45501963]
[1750577062702,146.9,135.59,135.56,10.45501963]
[1750577062864,146.9,135.59,135.57,5.90101054]
[1750577063267,16.85501963,135.62,135.58,10.45501963]
[1750577063574,16.85501963,135.62,135.57,20.65353691]
[1750577063575,6.4,135.62,135.59,10.45501963]
[1750577063789,6.4,135.62,135.58,10.45501963]
[1750577063995,16.85501963,135.62,135.58,10.45501963]
[1750577064576,6.4,135.62,135.58,10.45501963]
[1750577064774,6.4,135.62,135.59,5.90014012]
[1750577065190,16.85501963,135.62,135.59,5.90014012]
[1750577066698,6.4,135.62,135.59,5.90014012]
[1750577067777,16.85501963,135.62,135.59,5.90014012]
[1750577068700,16.85501963,135.62,135.55,5.90188122]
[1750577068701,10.45501963,135.61,135.55,5.90188122]
[1750577068888,26.0,135.58,135.56,10.45501963]
[1750577069202,183.35501963,135.6,135.56,10.45501963]
[1750577069598,183.35501963,135.6,135.57,5.90101054]
[1750577070578,172.9,135.6,135.57,5.90101054]
[1750577070772,183.35501963,135.6,135.57,5.90101054]
[1750577072005,146.9,135.6,135.56,31.11008011]
[1750577072186,146.9,135.6,135.57,10.45501963]
[1750577072700,146.9,135.6,135.59,10.45501963]
[1750577072903,10.45501963,135.63,135.59,10.45501963]
[1750577072904,157.35501963,135.63,135.59,10.45501963]
[1750577073411,146.9,135.63,135.59,10.45501963]
[1750577073589,157.35501963,135.63,135.59,10.45501963]
[1750577073785,157.35501963,135.63,135.6,5.89970501]
[1750577076309,146.9,135.63,135.6,20.64896754]
[1750577077194,146.9,135.63,135.6,31.10398717]
[1750577077391,16.85501963,135.65,135.61,10.45501963]
[1750577077805,6.4,135.65,135.63,5.89840005]
[1750577079209,6.4,135.65,135.63,16.35341968]
[1750577080904,10.45501963,135.67,135.63,31.09941982]
[1750577081593,146.9,135.68,135.63,31.09941982]
[1750577081791,10.45501963,135.66,135.63,20.64440019]
[1750577081995,10.45501963,135.64,135.61,5.89926996]
[1750577082207,30.04,135.63,135.58,5.9005753]
[1750577082414,10.45501963,135.6,135.58,5.9005753]
[1750577082808,10.45501963,135.59,135.57,14.75175059]
[1750577086224,30.02,135.61,135.57,14.75175059]
[1750577086426,10.45501963,135.6,135.57,14.75175059]
[1750577088296,10.45501963,135.59,135.56,5.90144585]
[1750577090719,10.45501963,135.59,135.55,124.75576358]
[1750577090720,10.45501963,135.57,135.55,124.75576358]
[1750577090922,10.45501963,135.56,135.55,124.75576358]
[1750577092428,38.04881963,135.56,135.55,118.8539974]
[1750577092602,38.04881963,135.56,135.49,5.90449479]
[1750577092603,44.59871963,135.56,135.49,5.90449479]
[1750577092920,176.94,135.55,135.49,5.90449479]
[1750577093222,176.94,135.55,135.46,5.90580245]
[1750577093223,10.45501963,135.5,135.46,5.90580245]
[1750577093407,10.45501963,135.49,135.46,5.90580245]
[1750577095015,10.45501963,135.48,135.46,5.90580245]
[1750577095202,10.45501963,135.47,135.46,5.90580245]
[1750577095929,10.45501963,135.48,135.46,5.90580245]
[1750577096103,10.45501963,135.49,135.46,20.67030857]
[1750577096303,10.45501963,135.49,135.46,14.76450612]
[1750577096706,10.45501963,135.5,135.46,14.76450612]
[1750577097036,10.45501963,135.49,135.46,14.76450612]
[1750577097533,10.45501963,135.48,135.46,14.76450612]
[1750577097909,10.45501963,135.47,135.45,5.90623846]
[1750577098429,10.45501963,135.46,135.43,14.76710029]
[1750577099550,10.45501963,135.46,135.43,20.67421097]
[1750577099827,10.45501963,135.45,135.43,20.67421097]
[1750577100405,10.45501963,135.45,135.43,5.90711068]
[1750577101343,10.45501963,135.46,135.43,20.67488739]
[1750577103412,157.35501963,135.47,135.43,31.12990702]
[1750577103943,10.45501963,135.46,135.43,20.67488739]
[1750577105035,10.45501963,135.45,135.43,20.67488739]
[1750577105235,10.45501963,135.46,135.43,14.76777671]
[1750577106035,146.9,135.47,135.43,25.22279634]
[1750577106036,157.35501963,135.47,135.43,25.22279634]
[1750577106234,10.45501963,135.46,135.43,14.76777671]
[1750577107232,10.45501963,135.46,135.43,20.67488739]
[1750577107442,157.35501963,135.47,135.43,20.67488739]
[1750577107935,157.35501963,135.47,135.43,31.12990702]
[1750577108249,146.9,135.47,135.44,10.45501963]
[1750577109237,146.9,135.47,135.41,18.64964886]
[1750577109541,157.35501963,135.47,135.43,10.45501963]
[1750577111528,157.35501963,135.47,135.44,5.90667454]
[1750577112836,10.45501963,135.46,135.42,10.45501963]
[1750577115736,10.45501963,135.46,135.43,5.90711068]
[1750577118043,10.45501963,135.46,135.42,20.67557516]
[1750577118347,10.45501963,135.46,135.42,31.13059479]
[1750577118527,10.45501963,135.46,135.42,20.67557516]
[1750577118728,10.45501963,135.46,135.42,31.13059479]
[1750577121949,10.45501963,135.45,135.42,20.67557516]
[1750577123396,10.45501963,135.46,135.42,31.13059479]
[1750577123535,157.35501963,135.47,135.42,31.13059479]
[1750577124556,157.35501963,135.47,135.44,5.90667454]
[1750577126759,157.35501963,135.47,135.43,5.90711068]
[1750577127055,10.45501963,135.46,135.43,5.90711068]
[1750577127258,10.45501963,135.46,135.43,20.67488739]
[1750577130451,10.45501963,135.46,135.4,50.22156571]
[1750577130654,10.45501963,135.46,135.42,10.45501963]
[1750577131164,202.96,135.45,135.4,20.67946823]
[1750577131369,10.45501963,135.43,135.4,20.67946823]
[1750577131576,10.45501963,135.44,135.4,20.67946823]
[1750577131743,10.45501963,135.44,135.4,31.13448786]
[1750577132269,202.96,135.45,135.4,20.67946823]
[1750577132270,10.45501963,135.43,135.4,20.67946823]
[1750577132980,10.45501963,135.42,135.4,5.90841949]
[1750577133459,40.51501963,135.43,135.4,5.90841949]
[1750577134269,40.51501963,135.43,135.39,5.90885589]
[1750577134452,10.45501963,135.42,135.39,5.90885589]
[1750577136867,157.35501963,135.42,135.39,5.90885589]
[1750577137371,146.9,135.42,135.39,31.13601526]
[1750577139075,146.9,135.42,135.39,25.22715937]
[1750577140058,157.35501963,135.46,135.41,10.45501963]
[1750577140392,146.9,135.46,135.43,10.45501963]
[1750577140685,157.35501963,135.46,135.42,12.06341963]
[1750577140850,157.35501963,135.45,135.39,22.28939563]
[1750577141164,10.45501963,135.43,135.39,20.68099563]
[1750577142157,10.45501963,135.43,135.39,31.13601526]
[1750577142373,176.96,135.45,135.39,31.13601526]
[1750577142564,10.45501963,135.43,135.39,31.13601526]
[1750577144068,10.45501963,135.44,135.39,31.13601526]
[1750577144377,157.35501963,135.45,135.41,10.45501963]
[1750577144954,146.9,135.45,135.42,10.45501963]
[1750577145970,146.9,135.45,135.43,5.90711068]
[1750577148381,146.9,135.45,135.42,14.76868493]
[1750577148881,157.35501963,135.45,135.42,14.76868493]
[1750577149076,146.9,135.45,135.42,14.76868493]
[1750577149378,157.35501963,135.45,135.42,14.76868493]
[1750577150165,157.35501963,135.45,135.42,20.67623182]
[1750577150790,146.9,135.45,135.42,20.67623182]
[1750577152783,157.35501963,135.45,135.42,20.67623182]
[1750577154171,10.45501963,135.43,135.4,5.90841949]
[1750577154372,10.45501963,135.41,135.4,5.90841949]
[1750577155297,157.35501963,135.44,135.4,31.13448786]
[1750577155601,157.35501963,135.44,135.4,20.67946823]
[1750577155795,10.45501963,135.43,135.4,20.67946823]
[1750577156891,10.45501963,135.41,135.37,31.13907074]
[1750577158400,10.45501963,135.42,135.37,31.13907074]
[1750577160307,10.45501963,135.42,135.38,10.45501963]
[1750577160991,10.45501963,135.42,135.39,5.90885589]
[1750577161296,30.06,135.43,135.39,5.90885589]
[1750577161491,40.51501963,135.43,135.39,31.13601526]
[1750577161874,10.45501963,135.43,135.39,31.13601526]
[1750577162497,10.45501963,135.43,135.39,20.68099563]
[1750577162696,10.45501963,135.43,135.39,31.13601526]
[1750577162881,157.35501963,135.44,135.39,31.13601526]
[1750577163080,157.35501963,135.44,135.4,10.45501963]
[1750577164204,157.35501963,135.44,135.41,5.90798316]
[1750577166202,146.9,135.44,135.41,31.13296069]
[1750577167800,146.9,135.44,135.38,68.87863393]
[1750577168106,146.9,135.44,135.4,10.45501963]
[1750577169001,146.9,135.44,135.41,20.67794106]
[1750577170314,146.9,135.44,135.41,10.45501963]
[1750577170686,146.9,135.44,135.42,10.45501963]
[1750577170983,6.4,135.46,135.43,10.45501963]
[1750577172116,6.4,135.46,135.44,5.90667454]
[1750577174899,6.4,135.46,135.44,16.36169417]
[1750577175293,6.4,135.46,135.44,5.90667454]
[1750577177496,6.4,135.46,135.44,10.45501963]
[1750577179407,6.4,135.46,135.45,5.90623846]
[1750577179814,146.9,135.47,135.45,5.90623846]
[1750577181103,157.35501963,135.47,135.45,5.90623846]
[1750577181514,10.45501963,135.46,135.43,20.6746969]
[1750577183618,176.96,135.47,135.43,25.22260585]
[1750577183796,146.9,135.47,135.44,10.45501963]
[1750577185228,146.9,135.47,135.45,5.90623846]
[1750577188113,11.40075486,135.49,135.45,5.90623846]
[1750577188114,11.40075486,135.49,135.46,10.45501963]
[1750577188429,11.40075486,135.49,135.45,31.12685425]
[1750577188728,21.85577449,135.49,135.45,31.12685425]
[1750577192129,11.40075486,135.49,135.45,31.12685425]
[1750577192426,21.85577449,135.49,135.45,31.12685425]
[1750577193001,11.40075486,135.49,135.48,10.45501963]
[1750577194840,11.40075486,135.49,135.48,16.35995024]
[1750577198642,11.40075486,135.49,135.48,35.0095991]
[1750577199840,153.3,135.53,135.48,79.29657872]
[1750577200044,6.4,135.53,135.51,10.45501963]
[1750577200742,6.4,135.53,135.52,5.90318772]
[1750577201044,157.35501963,135.56,135.52,5.90318772]
[1750577202635,157.35501963,135.56,135.52,20.66115702]
[1750577203529,10.45501963,135.56,135.52,20.66115702]
[1750577203725,10.45501963,135.56,135.52,31.11617665]
[1750577205339,26.0,135.57,135.52,31.11617665]
[1750577205647,10.45501963,135.56,135.52,31.11617665]
[1750577206323,26.0,135.57,135.52,31.11617665]
[1750577206529,36.45501963,135.57,135.52,31.11617665]
[1750577208737,10.45501963,135.56,135.52,31.11617665]
[1750577210032,16.85501963,135.58,135.53,10.45501963]
[1750577210632,16.85501963,135.58,135.54,10.45501963]
[1750577211425,16.85501963,135.58,135.55,5.90188122]
[1750577216160,6.4,135.58,135.55,5.90188122]
[1750577216945,6.4,135.58,135.54,21.46393472]
[1750577218151,6.4,135.58,135.54,27.36625137]
[1750577218466,18.96545691,135.59,135.54,27.36625137]
[1750577220665,6.70895094,135.58,135.54,20.65730043]
[1750577220852,6.70895094,135.57,135.54,5.90231665]
[1750577221049,12.25650597,135.59,135.55,6.70895094]
[1750577221251,12.25650597,135.59,135.57,5.90101054]
[1750577221443,12.25650597,135.59,135.58,6.70895094]
[1750577221643,160.00895094,135.63,135.58,8.36615094]
[1750577221845,153.3,135.63,135.6,6.70895094]
[1750577222064,146.9,135.68,135.62,6.70895094]
[1750577222249,6.4,135.71,135.65,6.70895094]
[1750577222250,6.70895094,135.7,135.65,6.70895094]
[1750577223465,6.70895094,135.69,135.65,6.70895094]
[1750577224849,10.46687949,135.69,135.65,10.46687949]
[1750577225270,30.02,135.7,135.66,5.89709568]
[1750577225572,10.46687949,135.69,135.66,5.89709568]
[1750577229148,10.46687949,135.69,135.65,25.21061707]
[1750577229553,10.46687949,135.69,135.66,10.46687949]
[1750577229767,40.48687949,135.7,135.66,10.46687949]
[1750577230074,6.4,135.71,135.67,10.46687949]
[1750577230278,6.4,135.71,135.68,10.46687949]
[1750577231677,6.4,135.71,135.69,5.89579187]
[1750577232456,6.4,135.71,135.69,16.36267136]
[1750577232671,146.9,135.72,135.69,31.10215105]
[1750577233473,10.46687949,135.74,135.7,10.46687949]
[1750577233674,10.46687949,135.74,135.71,5.89492299]
[1750577234655,26.0,135.75,135.71,5.89492299]
[1750577234856,10.46687949,135.75,135.71,20.63223048]
[1750577235464,10.46687949,135.75,135.71,31.09910997]
[1750577236184,193.74687949,135.76,135.71,31.09910997]
[1750577236362,183.28,135.76,135.71,31.09910997]
[1750577236565,193.74687949,135.76,135.71,31.09910997]
[1750577236767,163.74687949,135.76,135.71,31.09910997]
[1750577236962,163.74687949,135.76,135.71,14.73730749]
[1750577237182,163.74687949,135.76,135.71,25.20418698]
[1750577238271,163.74687949,135.76,135.71,31.09910997]
[1750577238680,153.28,135.76,135.71,31.09910997]
[1750577238879,163.74687949,135.76,135.71,31.09910997]
[1750577244396,163.74687949,135.76,135.72,10.46687949]
[1750577244593,153.28,135.76,135.74,10.46687949]
[1750577244803,6.38,135.76,135.75,10.46687949]
[1750577245177,30.0,135.79,135.75,10.46687949]
[1750577245376,157.36687949,135.8,135.76,10.46687949]
[1750577246492,157.36687949,135.8,135.75,31.09303049]
[1750577247786,157.36687949,135.8,135.77,5.89231789]
[1750577249212,146.9,135.8,135.77,5.89231789]
[1750577249377,157.36687949,135.8,135.77,5.89231789]
[1750577249697,157.36687949,135.8,135.76,20.62463169]
[1750577249903,157.36687949,135.8,135.76,31.09151118]
[1750577251499,146.9,135.8,135.77,10.46687949]
[1750577252210,146.9,135.8,135.78,5.89188392]
[1750577252401,10.46687949,135.81,135.78,5.89188392]
[1750577252717,62.36,135.83,135.78,31.08847323]
[1750577252881,10.46687949,135.82,135.78,31.08847323]
[1750577253085,62.36,135.83,135.78,31.08847323]
[1750577253287,10.46687949,135.82,135.78,31.08847323]
[1750577254891,10.46687949,135.81,135.76,5.89275191]
[1750577255081,10.46687949,135.81,135.76,16.3596314]
[1750577256609,10.46687949,135.81,135.76,31.09151118]
[1750577256916,10.46687949,135.81,135.78,5.89188392]
[1750577258310,29.98,135.82,135.78,5.89188392]
[1750577258488,40.44687949,135.82,135.78,31.08847323]
[1750577259187,10.46687949,135.82,135.78,31.08847323]
[1750577259720,6.38,135.83,135.79,10.46687949]
[1750577260208,6.38,135.83,135.8,10.46687949]
[1750577260386,6.38,135.83,135.81,5.89058243]
[1750577261212,34.0126,135.88,135.81,31.08391799]
[1750577261412,10.46687949,135.85,135.81,31.08391799]
[1750577262087,10.46687949,135.86,135.81,31.08391799]
[1750577263803,10.46687949,135.86,135.82,10.46687949]
[1750577264004,6.38,135.88,135.83,10.46687949]
[1750577264204,10.46687949,135.87,135.83,10.46687949]
[1750577264521,6.38,135.88,135.83,10.46687949]
[1750577264699,10.46687949,135.87,135.83,10.46687949]
[1750577265291,10.46687949,135.87,135.81,14.72645607]
[1750577265491,10.46687949,135.87,135.83,10.46687949]
[1750577266497,16.84687949,135.88,135.84,10.46687949]
[1750577266702,10.46687949,135.87,135.81,20.6170385]
[1750577266903,10.46687949,135.87,135.81,31.08391799]
[1750577266904,10.46687949,135.85,135.81,31.08391799]
[1750577267096,10.46687949,135.85,135.81,20.6170385]
[1750577269019,10.46687949,135.84,135.81,20.6170385]
[1750577269899,10.46687949,135.85,135.81,31.08391799]
[1750577274106,29.96,135.87,135.81,31.08391799]
[1750577274314,10.46687949,135.85,135.81,31.08391799]
[1750577275390,10.46687949,135.85,135.81,20.6170385]
[1750577275908,10.46687949,135.85,135.81,31.08391799]
[1750577276299,29.96,135.87,135.81,31.08391799]
[1750577276634,10.46687949,135.86,135.81,31.08391799]
[1750577277696,10.46687949,135.85,135.81,31.08391799]
[1750577279817,29.96,135.87,135.81,5.89058243]
[1750577279818,10.46687949,135.84,135.81,5.89058243]
[1750577280029,10.46687949,135.82,135.81,5.89058243]
[1750577280329,146.9,135.86,135.81,5.89058243]
[1750577280330,10.46687949,135.83,135.81,5.89058243]
[1750577281705,10.46687949,135.83,135.8,5.8910162]
[1750577283699,146.9,135.86,135.8,16.35789569]
[1750577283901,10.46687949,135.85,135.8,31.08543619]
[1750577284208,146.9,135.86,135.8,31.08543619]
[1750577284209,10.46687949,135.84,135.8,31.08543619]
[1750577284412,10.46687949,135.83,135.8,5.8910162]
[1750577284713,10.46687949,135.81,135.8,5.8910162]
[1750577285218,10.46687949,135.81,135.78,5.89188392]
[1750577285406,10.46687949,135.81,135.74,16.35563743]
[1750577285407,10.46687949,135.79,135.75,5.893186]
[1750577285606,10.46687949,135.78,135.75,5.893186]
[1750577286027,10.46687949,135.77,135.75,5.893186]
[1750577286330,10.46687949,135.76,135.75,5.893186]
[1750577287328,10.46687949,135.76,135.73,5.89405437]
[1750577287709,10.46687949,135.74,135.71,5.89492299]
[1750577287916,146.9,135.75,135.71,5.89492299]
[1750577287917,10.46687949,135.72,135.71,5.89492299]
[1750577288825,10.46687949,135.73,135.71,5.89492299]
[1750577289410,10.46687949,135.72,135.69,20.63527156]
[1750577289934,10.46687949,135.73,135.69,31.10215105]
[1750577290228,10.46687949,135.74,135.69,31.10215105]
[1750577290529,10.46687949,135.74,135.7,10.46687949]
[1750577291506,10.46687949,135.74,135.71,5.89492299]
[1750577292422,10.46687949,135.74,135.71,20.63223048]
[1750577292622,6.38,135.76,135.71,20.63223048]
[1750577292623,10.46687949,135.76,135.71,31.09910997]
[1750577292938,10.46687949,135.76,135.72,10.46687949]
[1750577293614,10.46687949,135.77,135.73,20.6291903]
[1750577293812,10.46687949,135.76,135.73,20.6291903]
[1750577295026,10.46687949,135.75,135.73,5.89405437]
[1750577295427,10.46687949,135.74,135.73,5.89405437]
[1750577295633,10.46687949,135.74,135.71,5.89492299]
[1750577296062,10.46687949,135.75,135.71,5.89492299]
[1750577296536,10.46687949,135.75,135.71,16.36180248]
[1750577296735,10.46687949,135.75,135.71,31.09910997]
[1750577297334,10.46687949,135.76,135.72,10.46687949]
[1750577297636,10.46687949,135.76,135.73,5.89405437]
[1750577297838,10.46687949,135.75,135.73,5.89405437]
[1750577298929,10.46687949,135.75,135.72,5.89448865]
[1750577299144,10.46687949,135.75,135.72,20.63071028]
[1750577299435,10.46687949,135.76,135.72,20.63071028]
[1750577302052,10.46687949,135.76,135.72,31.09758977]
[1750577302732,10.46687949,135.77,135.72,31.09758977]
[1750577303347,10.46687949,135.77,135.73,10.46687949]
[1750577303851,157.36687949,135.78,135.73,10.46687949]
[1750577305447,10.46687949,135.79,135.75,10.46687949]
[1750577305631,16.84687949,135.8,135.75,10.46687949]
[1750577306451,16.84687949,135.8,135.76,20.62463169]
[1750577306631,16.84687949,135.8,135.76,31.09151118]
[1750577307029,16.84687949,135.8,135.76,20.62463169]
[1750577308823,10.46687949,135.79,135.76,20.62463169]
[1750577311624,16.84687949,135.8,135.76,20.62463169]
[1750577312962,16.84687949,135.8,135.76,31.09151118]
[1750577313343,10.46687949,135.8,135.76,31.09151118]
[1750577314558,10.46687949,135.8,135.75,10.46687949]
[1750577315761,10.46687949,135.8,135.76,5.89275191]
[1750577316944,10.46687949,135.8,135.76,20.62463169]
[1750577317841,10.46687949,135.79,135.76,5.89275191]
[1750577318050,10.46687949,135.77,135.76,5.89275191]
[1750577318743,146.9,135.78,135.76,5.89275191]
[1750577318937,157.36687949,135.78,135.74,5.89362015]
[1750577319936,157.36687949,135.78,135.74,20.62767054]
[1750577321559,157.36687949,135.78,135.74,31.09455003]
[1750577321860,146.9,135.78,135.74,31.09455003]
[1750577322533,146.9,135.78,135.75,10.46687949]
[1750577323271,146.9,135.78,135.74,25.20092988]
[1750577324265,146.9,135.78,135.74,31.09455003]
[1750577325350,146.9,135.78,135.75,10.46687949]
[1750577326464,146.9,135.78,135.76,5.89275191]
[1750577337377,146.9,135.78,135.76,10.46687949]
[1750577340579,46.80687949,135.81,135.77,5.89231789]
[1750577342280,10.46687949,135.8,135.77,5.89231789]
[1750577342786,36.34,135.81,135.77,5.89231789]
[1750577342998,10.46687949,135.8,135.77,5.89231789]
[1750577347879,36.34,135.81,135.77,5.89231789]
[1750577348193,10.46687949,135.8,135.77,5.89231789]
[1750577348872,6.68773636,135.8,135.77,5.89231789]
[1750577354902,6.68773636,135.79,135.76,20.62440336]
[1750577356129,6.68773636,135.79,135.74,5.89362015]
[1750577356279,6.68773636,135.79,135.74,12.58135651]
[1750577356475,153.58773636,135.78,135.74,20.62767054]
[1750577356798,6.68773636,135.77,135.74,5.89362015]
[1750577358202,6.68773636,135.77,135.73,20.6291903]
[1750577358819,153.58773636,135.78,135.74,6.68773636]
[1750577359311,146.9,135.78,135.75,6.68773636]
[1750577360905,146.9,135.78,135.76,5.89275191]
[1750577361696,157.35116343,135.78,135.76,5.89275191]
[1750577363385,157.35116343,135.78,135.75,14.73276376]
[1750577364187,146.9,135.78,135.75,25.18392719]
[1750577364882,146.9,135.78,135.75,14.73276376]
[1750577365906,146.9,135.78,135.75,20.62594976]
[1750577381524,146.9,135.78,135.75,27.31507058]
[1750577382109,146.9,135.78,135.75,14.73276376]
[1750577382396,146.9,135.78,135.75,21.42188458]
[1750577383633,146.9,135.78,135.75,20.62594976]
[1750577384009,146.9,135.78,135.75,27.31507058]